[Event "Titled Tuesday Blitz January 03 Late 2023"]
[White "Pein, Jonathan"]
[Black "Remizov, Yaroslav"]
[WhiteFideId "417092"]
[BlackFideId "34134015"]
[WhiteElo "2265"]
[BlackElo "2421"]
[Result "0-1"]
[Round "01"]
[TimeControl "180+2"]
[Date "2023.01.03"]
[WhiteClock "0:00:03"]
[BlackClock "0:00:34"]

1. e4 {[%clk 0:02:59]}  c6 {[%clk 0:02:59]} 2. d4 {[%clk 0:02:58]}  d5 {[%clk 0:02:59]} 3. Bd3 {[%clk 0:02:59]}  dxe4 {[%clk 0:02:57]} 4. Bxe4 {[%clk 0:03:00]}  Nf6 {[%clk 0:02:57]} 5. Bf3 {[%clk 0:03:01]}  g6 {[%clk 0:02:57]} 6. Ne2 {[%clk 0:03:01]}  Bg7 {[%clk 0:02:57]} 7. O-O {[%clk 0:03:02]}  O-O {[%clk 0:02:58]} 8. c4 {[%clk 0:03:02]}  Bg4 {[%clk 0:02:54]} 9. Bxg4 {[%clk 0:03:02]}  Nxg4 {[%clk 0:02:55]} 10. Nbc3 {[%clk 0:03:00]}  Na6 {[%clk 0:02:53]} 11. h3 {[%clk 0:02:59]}  Nh6 {[%clk 0:02:49]} 12. d5 {[%clk 0:02:59]}  cxd5 {[%clk 0:02:44]} 13. Nxd5 {[%clk 0:02:59]}  Nf5 {[%clk 0:02:43]} 14. Ne3 {[%clk 0:02:51]}  Nxe3 {[%clk 0:02:41]} 15. Bxe3 {[%clk 0:02:51]}  Qc7 {[%clk 0:02:35]} 16. Qb3 {[%clk 0:02:40]}  Rac8 {[%clk 0:02:29]} 17. Rac1 {[%clk 0:02:39]}  b6 {[%clk 0:02:27]} 18. Bf4 {[%clk 0:02:25]}  Qb7 {[%clk 0:02:20]} 19. Nc3 {[%clk 0:02:13]}  Nc5 {[%clk 0:02:17]} 20. Qc2 {[%clk 0:02:12]}  Ne6 {[%clk 0:02:08]} 21. Nd5 {[%clk 0:02:00]}  Qxd5 {[%clk 0:02:06]} 22. cxd5 {[%clk 0:01:57]}  Rxc2 {[%clk 0:02:07]} 23. Rxc2 {[%clk 0:01:58]}  Nxf4 {[%clk 0:02:06]} 24. Rc7 {[%clk 0:01:59]}  Nxd5 {[%clk 0:02:05]} 25. Rxa7 {[%clk 0:01:59]}  Bxb2 {[%clk 0:02:05]} 26. Rb1 {[%clk 0:01:57]}  Bf6 {[%clk 0:02:04]} 27. a4 {[%clk 0:01:55]}  e6 {[%clk 0:02:02]} 28. a5 {[%clk 0:01:55]}  bxa5 {[%clk 0:02:02]} 29. Rxa5 {[%clk 0:01:56]}  Rc8 {[%clk 0:02:02]} 30. Ra2 {[%clk 0:01:54]}  Nc3 {[%clk 0:02:02]} 31. Rc2 {[%clk 0:01:51]}  Nxb1 {[%clk 0:02:02]} 32. Rxc8+ {[%clk 0:01:50]}  Kg7 {[%clk 0:02:02]} 33. Kf1 {[%clk 0:01:46]}  Nc3 {[%clk 0:02:01]} 34. g3 {[%clk 0:01:42]}  h5 {[%clk 0:02:01]} 35. h4 {[%clk 0:01:42]}  Nd5 {[%clk 0:01:59]} 36. Ke2 {[%clk 0:01:42]}  Be5 {[%clk 0:01:58]} 37. Kf3 {[%clk 0:01:41]}  Kf6 {[%clk 0:01:58]} 38. Rf8 {[%clk 0:01:39]}  Nb4 {[%clk 0:01:54]} 39. Ke4 {[%clk 0:01:38]}  Nd5 {[%clk 0:01:52]} 40. Kf3 {[%clk 0:01:32]}  Bd6 {[%clk 0:01:51]} 41. Rd8 {[%clk 0:01:30]}  Ke7 {[%clk 0:01:51]} 42. Ra8 {[%clk 0:01:28]}  e5 {[%clk 0:01:49]} 43. Ra6 {[%clk 0:01:18]}  Ke6 {[%clk 0:01:48]} 44. Ke4 {[%clk 0:01:16]}  Nc3+ {[%clk 0:01:42]} 45. Kf3 {[%clk 0:01:14]}  Kd5 {[%clk 0:01:38]} 46. Ra7 {[%clk 0:01:12]}  Ke6 {[%clk 0:01:38]} 47. Ra6 {[%clk 0:01:12]}  f6 {[%clk 0:01:35]} 48. Ke3 {[%clk 0:01:03]}  Nb5 {[%clk 0:01:25]} 49. Ra8 {[%clk 0:00:50]}  Kf5 {[%clk 0:01:23]} 50. Ra6 {[%clk 0:00:41]}  Bc5+ {[%clk 0:01:23]} 51. Kf3 {[%clk 0:00:39]}  Nc3 {[%clk 0:01:18]} 52. Rc6 {[%clk 0:00:32]}  Ne4 {[%clk 0:01:14]} 53. Ra6 {[%clk 0:00:13]}  Bxf2 {[%clk 0:01:14]} 54. Ra4 {[%clk 0:00:12]}  Nc5 {[%clk 0:01:05]} 55. Ra5 {[%clk 0:00:03]}  Bd4 {[%clk 0:01:04]} 56. Ra2 {[%clk 0:00:04]}  e4+ {[%clk 0:01:00]} 57. Kg2 {[%clk 0:00:04]}  Be5 {[%clk 0:01:00]} 58. Ra5 {[%clk 0:00:03]}  Nd3 {[%clk 0:01:00]} 59. Ra8 {[%clk 0:00:03]}  Ne1+ {[%clk 0:00:56]} 60. Kf2 {[%clk 0:00:03]}  Nf3 {[%clk 0:00:53]} 61. Kg2 {[%clk 0:00:04]}  Nd4 {[%clk 0:00:44]} 62. Rg8 {[%clk 0:00:04]}  e3 {[%clk 0:00:43]} 63. Kf1 {[%clk 0:00:02]}  Bxg3 {[%clk 0:00:43]} 64. Kg2 {[%clk 0:00:02]}  Bxh4 {[%clk 0:00:42]} 65. Kh3 {[%clk 0:00:03]}  Bf2 {[%clk 0:00:41]} 66. Re8 {[%clk 0:00:03]}  g5 {[%clk 0:00:41]} 67. Kg2 {[%clk 0:00:03]}  h4 {[%clk 0:00:42]} 68. Kf1 {[%clk 0:00:04]}  Kg4 {[%clk 0:00:41]} 69. Re4+ {[%clk 0:00:03]}  Kf3 {[%clk 0:00:34]} 0-1


[Site "https://www.chess.com"]

[Event "Titled Tuesday Blitz January 03 Late 2023"]
[White "Pichot, Alan"]
[Black "Karas, Marek"]
[WhiteFideId "110973"]
[BlackFideId "14928558"]
[WhiteElo "2638"]
[BlackElo "2227"]
[Result "1/2-1/2"]
[Round "01"]
[TimeControl "180+2"]
[Date "2023.01.03"]
[WhiteClock "0:00:04"]
[BlackClock "0:00:06"]

1. e4 {[%clk 0:03:00]}  e6 {[%clk 0:02:59]} 2. d3 {[%clk 0:02:57]}  d5 {[%clk 0:02:59]} 3. Nd2 {[%clk 0:02:56]}  Nf6 {[%clk 0:02:59]} 4. Ngf3 {[%clk 0:02:54]}  c5 {[%clk 0:02:59]} 5. g3 {[%clk 0:02:54]}  Nc6 {[%clk 0:02:59]} 6. Bg2 {[%clk 0:02:54]}  Be7 {[%clk 0:02:59]} 7. O-O {[%clk 0:02:55]}  O-O {[%clk 0:02:59]} 8. e5 {[%clk 0:02:51]}  Nd7 {[%clk 0:02:58]} 9. Re1 {[%clk 0:02:52]}  b5 {[%clk 0:02:57]} 10. h4 {[%clk 0:02:51]}  Qc7 {[%clk 0:02:53]} 11. Qe2 {[%clk 0:02:51]}  Bb7 {[%clk 0:02:54]} 12. Nf1 {[%clk 0:02:51]}  Rfc8 {[%clk 0:02:53]} 13. Bf4 {[%clk 0:02:48]}  Qd8 {[%clk 0:02:45]} 14. h5 {[%clk 0:02:48]}  h6 {[%clk 0:02:44]} 15. N1h2 {[%clk 0:02:47]}  Bf8 {[%clk 0:02:45]} 16. Ng4 {[%clk 0:02:41]}  a5 {[%clk 0:02:42]} 17. a3 {[%clk 0:02:39]}  b4 {[%clk 0:02:42]} 18. a4 {[%clk 0:02:36]}  Ba6 {[%clk 0:02:33]} 19. Qd2 {[%clk 0:02:34]}  c4 {[%clk 0:02:29]} 20. d4 {[%clk 0:02:13]}  c3 {[%clk 0:02:27]} 21. bxc3 {[%clk 0:02:14]}  bxc3 {[%clk 0:02:26]} 22. Qe3 {[%clk 0:02:13]}  Nb4 {[%clk 0:02:22]} 23. Rec1 {[%clk 0:02:08]}  Nb6 {[%clk 0:02:17]} 24. Nxh6+ {[%clk 0:02:06]}  gxh6 {[%clk 0:02:17]} 25. Bxh6 {[%clk 0:02:07]}  Bxh6 {[%clk 0:02:16]} 26. Qxh6 {[%clk 0:02:07]}  Qf8 {[%clk 0:02:16]} 27. Qf4 {[%clk 0:02:07]}  Qg7 {[%clk 0:02:00]} 28. Nh2 {[%clk 0:01:52]}  Kh8 {[%clk 0:01:48]} 29. Ng4 {[%clk 0:01:51]}  Rg8 {[%clk 0:01:38]} 30. Nf6 {[%clk 0:01:50]}  Qg5 {[%clk 0:01:36]} 31. Qf3 {[%clk 0:01:20]}  Rg7 {[%clk 0:01:30]} 32. Kh2 {[%clk 0:01:07]}  Nc4 {[%clk 0:01:20]} 33. Qxc3 {[%clk 0:01:07]}  Rh7 {[%clk 0:01:01]} 34. f4 {[%clk 0:01:02]}  Rxh5+ {[%clk 0:00:55]} 35. Kg1 {[%clk 0:00:58]}  Qh6 {[%clk 0:00:51]} 36. Nxh5 {[%clk 0:00:56]}  Qxh5 {[%clk 0:00:52]} 37. Kf2 {[%clk 0:00:56]}  Kg7 {[%clk 0:00:48]} 38. Rh1 {[%clk 0:00:56]}  Qg6 {[%clk 0:00:47]} 39. Rh4 {[%clk 0:00:51]}  Rh8 {[%clk 0:00:41]} 40. Rxh8 {[%clk 0:00:48]}  Kxh8 {[%clk 0:00:42]} 41. Rh1+ {[%clk 0:00:47]}  Kg8 {[%clk 0:00:39]} 42. Bf1 {[%clk 0:00:48]}  Qxc2+ {[%clk 0:00:38]} 43. Qxc2 {[%clk 0:00:48]}  Nxc2 {[%clk 0:00:39]} 44. Bd3 {[%clk 0:00:39]}  Nb4 {[%clk 0:00:38]} 45. Bf1 {[%clk 0:00:28]}  Nb2 {[%clk 0:00:33]} 46. Bxa6 {[%clk 0:00:21]}  Nxa6 {[%clk 0:00:34]} 47. Rb1 {[%clk 0:00:22]}  Nxa4 {[%clk 0:00:28]} 48. Rb5 {[%clk 0:00:22]}  Nc3 {[%clk 0:00:18]} 49. Rxa5 {[%clk 0:00:23]}  Ne4+ {[%clk 0:00:17]} 50. Kf3 {[%clk 0:00:22]}  Nb4 {[%clk 0:00:17]} 51. Ra4 {[%clk 0:00:21]}  Nc2 {[%clk 0:00:10]} 52. g4 {[%clk 0:00:22]}  Nc3 {[%clk 0:00:08]} 53. Ra8+ {[%clk 0:00:15]}  Kg7 {[%clk 0:00:09]} 54. f5 {[%clk 0:00:16]}  Nxd4+ {[%clk 0:00:07]} 55. Kf4 {[%clk 0:00:17]}  Nce2+ {[%clk 0:00:03]} 56. Ke3 {[%clk 0:00:17]}  exf5 {[%clk 0:00:04]} 57. gxf5 {[%clk 0:00:18]}  Nxf5+ {[%clk 0:00:01]} 58. Kxe2 {[%clk 0:00:19]}  Nd4+ {[%clk 0:00:02]} 59. Ke3 {[%clk 0:00:18]}  Ne6 {[%clk 0:00:03]} 60. Ra5 {[%clk 0:00:17]}  d4+ {[%clk 0:00:03]} 61. Ke4 {[%clk 0:00:18]}  Kg6 {[%clk 0:00:03]} 62. Ra1 {[%clk 0:00:19]}  Kg7 {[%clk 0:00:04]} 63. Rg1+ {[%clk 0:00:19]}  Kf8 {[%clk 0:00:04]} 64. Kd5 {[%clk 0:00:19]}  Ke7 {[%clk 0:00:04]} 65. Ra1 {[%clk 0:00:20]}  Kf8 {[%clk 0:00:03]} 66. Kd6 {[%clk 0:00:19]}  Kg7 {[%clk 0:00:04]} 67. Ke7 {[%clk 0:00:20]}  Kg6 {[%clk 0:00:03]} 68. Rf1 {[%clk 0:00:20]}  Ng5 {[%clk 0:00:03]} 69. Kd6 {[%clk 0:00:13]}  d3 {[%clk 0:00:02]} 70. Kd5 {[%clk 0:00:12]}  d2 {[%clk 0:00:03]} 71. Rd1 {[%clk 0:00:12]}  Nf3 {[%clk 0:00:03]} 72. Ke4 {[%clk 0:00:13]}  Ng5+ {[%clk 0:00:03]} 73. Kf4 {[%clk 0:00:12]}  Ne6+ {[%clk 0:00:03]} 74. Ke4 {[%clk 0:00:13]}  Ng5+ {[%clk 0:00:04]} 75. Kd4 {[%clk 0:00:03]}  Nf3+ {[%clk 0:00:03]} 76. Kd5 {[%clk 0:00:03]}  Kf5 {[%clk 0:00:03]} 77. Rf1 {[%clk 0:00:04]}  Kf4 {[%clk 0:00:04]} 78. Ra1 {[%clk 0:00:03]}  Nxe5 {[%clk 0:00:03]} 79. Kd4 {[%clk 0:00:03]}  Nf3+ {[%clk 0:00:03]} 80. Kd3 {[%clk 0:00:04]}  f5 {[%clk 0:00:03]} 81. Ke2 {[%clk 0:00:04]}  Ke4 {[%clk 0:00:01]} 82. Ra4+ {[%clk 0:00:04]}  Nd4+ {[%clk 0:00:02]} 83. Kxd2 {[%clk 0:00:05]}  f4 {[%clk 0:00:02]} 84. Kc3 {[%clk 0:00:04]}  f3 {[%clk 0:00:03]} 85. Rxd4+ {[%clk 0:00:04]}  Ke3 {[%clk 0:00:04]} 86. Rd3+ {[%clk 0:00:05]}  Ke2 {[%clk 0:00:04]} 87. Rd2+ {[%clk 0:00:02]}  Ke3 {[%clk 0:00:02]} 88. Rd8 {[%clk 0:00:01]}  f2 {[%clk 0:00:03]} 89. Re8+ {[%clk 0:00:02]}  Kf3 {[%clk 0:00:03]} 90. Rf8+ {[%clk 0:00:02]}  Ke2 {[%clk 0:00:04]} 91. Re8+ {[%clk 0:00:02]}  Kf3 {[%clk 0:00:04]} 92. Kd2 {[%clk 0:00:02]}  f1=Q {[%clk 0:00:05]} 93. Rf8+ {[%clk 0:00:03]}  Kg2 {[%clk 0:00:05]} 94. Rxf1 {[%clk 0:00:04]}  Kxf1 {[%clk 0:00:06]} 1/2-1/2


[Site "https://www.chess.com"]

[Event "Titled Tuesday Blitz January 03 Late 2023"]
[White "Manukian, Artak"]
[Black "Zakhartsov, Vladimir"]
[WhiteFideId "13301373"]
[BlackFideId "4145097"]
[WhiteElo "2196"]
[BlackElo "2552"]
[Result "0-1"]
[Round "01"]
[TimeControl "180+2"]
[Date "2023.01.03"]
[WhiteClock "0:00:14"]
[BlackClock "0:00:15"]

1. e4 {[%clk 0:03:00]}  g6 {[%clk 0:03:00]} 2. d4 {[%clk 0:03:00]}  Bg7 {[%clk 0:03:00]} 3. c4 {[%clk 0:03:00]}  d6 {[%clk 0:03:01]} 4. Nc3 {[%clk 0:03:00]}  e5 {[%clk 0:03:01]} 5. d5 {[%clk 0:03:00]}  f5 {[%clk 0:03:01]} 6. Bd3 {[%clk 0:03:00]}  Nf6 {[%clk 0:03:01]} 7. Nge2 {[%clk 0:02:59]}  O-O {[%clk 0:03:01]} 8. O-O {[%clk 0:02:59]}  f4 {[%clk 0:03:01]} 9. f3 {[%clk 0:02:57]}  g5 {[%clk 0:03:00]} 10. g4 {[%clk 0:02:54]}  h5 {[%clk 0:02:54]} 11. h3 {[%clk 0:02:55]}  hxg4 {[%clk 0:02:54]} 12. hxg4 {[%clk 0:02:55]}  Nxg4 {[%clk 0:02:53]} 13. fxg4 {[%clk 0:02:54]}  Bxg4 {[%clk 0:02:53]} 14. Qb3 {[%clk 0:02:22]}  Nd7 {[%clk 0:02:51]} 15. Kf2 {[%clk 0:02:12]}  Bh3 {[%clk 0:02:43]} 16. Rg1 {[%clk 0:02:02]}  g4 {[%clk 0:02:43]} 17. Ke1 {[%clk 0:02:01]}  Nc5 {[%clk 0:02:10]} 18. Qc2 {[%clk 0:01:51]}  Qh4+ {[%clk 0:01:42]} 19. Kd1 {[%clk 0:01:48]}  Qf2 {[%clk 0:01:33]} 20. b4 {[%clk 0:01:41]}  Nxd3 {[%clk 0:01:19]} 21. Qxd3 {[%clk 0:01:42]}  f3 {[%clk 0:01:20]} 22. Be3 {[%clk 0:01:42]}  fxe2+ {[%clk 0:01:19]} 23. Qxe2 {[%clk 0:01:37]}  Qxg1+ {[%clk 0:01:05]} 24. Bxg1 {[%clk 0:01:32]}  Rf1+ {[%clk 0:01:05]} 25. Kc2 {[%clk 0:01:20]}  Rxa1 {[%clk 0:01:05]} 26. Be3 {[%clk 0:01:21]}  a5 {[%clk 0:00:59]} 27. b5 {[%clk 0:01:11]}  Rf8 {[%clk 0:00:59]} 28. c5 {[%clk 0:01:06]}  dxc5 {[%clk 0:00:37]} 29. Bxc5 {[%clk 0:01:03]}  Rf3 {[%clk 0:00:34]} 30. d6 {[%clk 0:00:58]}  cxd6 {[%clk 0:00:33]} 31. Bxd6 {[%clk 0:00:56]}  Raf1 {[%clk 0:00:32]} 32. Qc4+ {[%clk 0:00:56]}  Kh7 {[%clk 0:00:32]} 33. Qc7 {[%clk 0:00:41]}  Rf7 {[%clk 0:00:32]} 34. Qxa5 {[%clk 0:00:37]}  g3 {[%clk 0:00:32]} 35. Ne2 {[%clk 0:00:34]}  g2 {[%clk 0:00:30]} 36. Bc5 {[%clk 0:00:33]}  R1f2 {[%clk 0:00:18]} 37. Bxf2 {[%clk 0:00:32]}  Rxf2 {[%clk 0:00:19]} 38. Qe1 {[%clk 0:00:26]}  Rxe2+ {[%clk 0:00:19]} 39. Qxe2 {[%clk 0:00:26]}  g1=Q {[%clk 0:00:19]} 40. Qh5+ {[%clk 0:00:25]}  Kg8 {[%clk 0:00:20]} 41. Qxh3 {[%clk 0:00:21]}  Qc5+ {[%clk 0:00:20]} 42. Kd2 {[%clk 0:00:17]}  Qd4+ {[%clk 0:00:18]} 43. Kc2 {[%clk 0:00:16]}  Qxe4+ {[%clk 0:00:17]} 44. Kb3 {[%clk 0:00:16]}  Qd5+ {[%clk 0:00:17]} 45. Kb4 {[%clk 0:00:17]}  b6 {[%clk 0:00:15]} 46. Qc8+ {[%clk 0:00:16]}  Bf8+ {[%clk 0:00:15]} 47. Ka4 {[%clk 0:00:14]}  Qxa2# {[%clk 0:00:15]} 0-1


[Site "https://www.chess.com"]

[Event "Titled Tuesday Blitz January 03 Late 2023"]
[White "Abdisalimov, Abdimalik"]
[Black "Kleinman, Michael"]
[WhiteFideId "14206323"]
[BlackFideId "2609479"]
[WhiteElo "2492"]
[BlackElo "2387"]
[Result "1-0"]
[Round "01"]
[TimeControl "180+2"]
[Date "2023.01.03"]
[WhiteClock "0:02:02"]
[BlackClock "0:00:12"]

1. d4 {[%clk 0:03:00]}  Nf6 {[%clk 0:02:59]} 2. c4 {[%clk 0:03:00]}  g6 {[%clk 0:02:59]} 3. f3 {[%clk 0:02:59]}  d5 {[%clk 0:02:57]} 4. cxd5 {[%clk 0:03:00]}  Nxd5 {[%clk 0:02:55]} 5. e4 {[%clk 0:03:00]}  Nb6 {[%clk 0:02:55]} 6. Nc3 {[%clk 0:03:01]}  Bg7 {[%clk 0:02:55]} 7. Be3 {[%clk 0:03:01]}  O-O {[%clk 0:02:38]} 8. Qd2 {[%clk 0:03:01]}  e5 {[%clk 0:02:36]} 9. d5 {[%clk 0:03:00]}  c6 {[%clk 0:02:35]} 10. h4 {[%clk 0:03:01]}  cxd5 {[%clk 0:02:34]} 11. exd5 {[%clk 0:03:02]}  Na6 {[%clk 0:02:14]} 12. h5 {[%clk 0:03:01]}  Nb4 {[%clk 0:02:01]} 13. Rd1 {[%clk 0:02:59]}  Bf5 {[%clk 0:01:54]} 14. Kf2 {[%clk 0:02:58]}  Rc8 {[%clk 0:01:39]} 15. g4 {[%clk 0:02:53]}  Bc2 {[%clk 0:01:24]} 16. Rc1 {[%clk 0:02:52]}  N6xd5 {[%clk 0:01:21]} 17. Nxd5 {[%clk 0:02:48]}  Qxd5 {[%clk 0:01:18]} 18. Qxb4 {[%clk 0:02:48]}  Qxa2 {[%clk 0:01:00]} 19. Ne2 {[%clk 0:02:39]}  e4 {[%clk 0:00:56]} 20. Nd4 {[%clk 0:02:21]}  Bd3 {[%clk 0:00:48]} 21. Bxd3 {[%clk 0:02:11]}  exd3 {[%clk 0:00:48]} 22. Rhd1 {[%clk 0:02:07]}  Rxc1 {[%clk 0:00:44]} 23. Rxc1 {[%clk 0:02:05]}  Re8 {[%clk 0:00:37]} 24. Qb5 {[%clk 0:02:01]}  Re5 {[%clk 0:00:21]} 25. Rc8+ {[%clk 0:01:59]}  Bf8 {[%clk 0:00:20]} 26. Qxe5 {[%clk 0:01:59]}  Qxb2+ {[%clk 0:00:19]} 27. Kg3 {[%clk 0:02:00]}  d2 {[%clk 0:00:14]} 28. Rxf8+ {[%clk 0:02:00]}  Kxf8 {[%clk 0:00:12]} 29. Bh6+ {[%clk 0:02:01]}  Kg8 {[%clk 0:00:12]} 30. Qe8# {[%clk 0:02:02]} 1-0


[Site "https://www.chess.com"]

[Event "Titled Tuesday Blitz January 03 Late 2023"]
[White "Mardov, Dimitar"]
[Black "Quinones Garcia, Santiago"]
[WhiteFideId "30919495"]
[BlackFideId "4408497"]
[WhiteElo "2456"]
[BlackElo "2248"]
[Result "1-0"]
[Round "01"]
[TimeControl "180+2"]
[Date "2023.01.03"]
[WhiteClock "0:01:17"]
[BlackClock "0:01:09"]

1. d4 {[%clk 0:03:00]}  Nf6 {[%clk 0:02:59]} 2. c4 {[%clk 0:03:01]}  e6 {[%clk 0:03:00]} 3. Nc3 {[%clk 0:03:01]}  Bb4 {[%clk 0:02:59]} 4. Qc2 {[%clk 0:02:58]}  b6 {[%clk 0:02:59]} 5. e4 {[%clk 0:02:55]}  c5 {[%clk 0:02:58]} 6. d5 {[%clk 0:02:54]}  exd5 {[%clk 0:02:55]} 7. exd5 {[%clk 0:02:55]}  Qe7+ {[%clk 0:02:55]} 8. Ne2 {[%clk 0:02:39]}  d6 {[%clk 0:02:52]} 9. Bd2 {[%clk 0:02:37]}  O-O {[%clk 0:02:52]} 10. O-O-O {[%clk 0:02:37]}  Bg4 {[%clk 0:02:42]} 11. f3 {[%clk 0:02:36]}  Bh5 {[%clk 0:02:42]} 12. Nf4 {[%clk 0:02:36]}  Bg6 {[%clk 0:02:41]} 13. Nxg6 {[%clk 0:02:34]}  hxg6 {[%clk 0:02:42]} 14. Bd3 {[%clk 0:02:34]}  a6 {[%clk 0:02:39]} 15. h4 {[%clk 0:02:28]}  Bxc3 {[%clk 0:02:34]} 16. Bxc3 {[%clk 0:02:27]}  b5 {[%clk 0:02:34]} 17. Rde1 {[%clk 0:02:19]}  Qd7 {[%clk 0:02:29]} 18. Bxf6 {[%clk 0:02:07]}  gxf6 {[%clk 0:02:28]} 19. h5 {[%clk 0:02:08]}  bxc4 {[%clk 0:02:19]} 20. Qxc4 {[%clk 0:02:04]}  g5 {[%clk 0:01:55]} 21. g4 {[%clk 0:01:36]}  Re8 {[%clk 0:01:44]} 22. Qc3 {[%clk 0:01:27]}  Rxe1+ {[%clk 0:01:35]} 23. Rxe1 {[%clk 0:01:28]}  Qd8 {[%clk 0:01:35]} 24. Bf5 {[%clk 0:01:26]}  Nd7 {[%clk 0:01:33]} 25. Bxd7 {[%clk 0:01:26]}  Qxd7 {[%clk 0:01:33]} 26. Qxf6 {[%clk 0:01:26]}  Qd8 {[%clk 0:01:34]} 27. Re7 {[%clk 0:01:23]}  Qf8 {[%clk 0:01:34]} 28. h6 {[%clk 0:01:17]}  Re8 {[%clk 0:01:09]} 29. Rxe8 {[%clk 0:01:17]} 1-0


[Site "https://www.chess.com"]

[Event "Titled Tuesday Blitz January 03 Late 2023"]
[White "Gatineau, Yovann"]
[Black "Gaehwiler, Gabriel"]
[WhiteFideId "26028999"]
[BlackFideId "1314530"]
[WhiteElo "2362"]
[BlackElo "2404"]
[Result "0-1"]
[Round "01"]
[TimeControl "180+2"]
[Date "2023.01.03"]
[WhiteClock "0:00:04"]
[BlackClock "0:01:17"]

1. c4 {[%clk 0:02:59]}  Nf6 {[%clk 0:02:59]} 2. Nc3 {[%clk 0:02:56]}  g6 {[%clk 0:02:59]} 3. g3 {[%clk 0:02:56]}  c6 {[%clk 0:02:59]} 4. Bg2 {[%clk 0:02:56]}  Bg7 {[%clk 0:02:59]} 5. Nf3 {[%clk 0:02:56]}  d6 {[%clk 0:02:59]} 6. O-O {[%clk 0:02:56]}  O-O {[%clk 0:02:59]} 7. d4 {[%clk 0:02:57]}  Bf5 {[%clk 0:02:59]} 8. Qb3 {[%clk 0:02:55]}  Qc8 {[%clk 0:02:57]} 9. Nh4 {[%clk 0:02:55]}  Be6 {[%clk 0:02:56]} 10. e4 {[%clk 0:02:53]}  b5 {[%clk 0:02:44]} 11. d5 {[%clk 0:02:50]}  bxc4 {[%clk 0:02:43]} 12. Qxc4 {[%clk 0:02:51]}  cxd5 {[%clk 0:02:42]} 13. Qxc8 {[%clk 0:02:51]}  Rxc8 {[%clk 0:02:43]} 14. exd5 {[%clk 0:02:49]}  Bd7 {[%clk 0:02:42]} 15. Re1 {[%clk 0:02:44]}  Kf8 {[%clk 0:02:42]} 16. Bd2 {[%clk 0:02:32]}  Na6 {[%clk 0:02:39]} 17. Re2 {[%clk 0:02:18]}  Nc5 {[%clk 0:02:33]} 18. Nf3 {[%clk 0:02:05]}  Ne8 {[%clk 0:02:22]} 19. Bg5 {[%clk 0:01:57]}  Bf6 {[%clk 0:02:14]} 20. Bxf6 {[%clk 0:01:54]}  Nxf6 {[%clk 0:02:12]} 21. Nd4 {[%clk 0:01:54]}  Rab8 {[%clk 0:02:05]} 22. Nc6 {[%clk 0:01:44]}  Bxc6 {[%clk 0:02:04]} 23. dxc6 {[%clk 0:01:45]}  e6 {[%clk 0:02:04]} 24. a3 {[%clk 0:00:58]}  Nb3 {[%clk 0:02:00]} 25. Rd1 {[%clk 0:00:53]}  d5 {[%clk 0:02:00]} 26. Bf3 {[%clk 0:00:27]}  Rxc6 {[%clk 0:01:55]} 27. Kg2 {[%clk 0:00:27]}  Na5 {[%clk 0:01:53]} 28. Na4 {[%clk 0:00:23]}  Kg7 {[%clk 0:01:51]} 29. g4 {[%clk 0:00:20]}  Rc4 {[%clk 0:01:48]} 30. b4 {[%clk 0:00:16]}  Nb3 {[%clk 0:01:44]} 31. h3 {[%clk 0:00:15]}  h6 {[%clk 0:01:33]} 32. Re3 {[%clk 0:00:10]}  Nc1 {[%clk 0:01:20]} 33. Nb2 {[%clk 0:00:09]}  Rc2 {[%clk 0:01:18]} 34. Nd3 {[%clk 0:00:08]}  Nxd3 {[%clk 0:01:18]} 35. Rdxd3 {[%clk 0:00:08]}  Rbc8 {[%clk 0:01:19]} 36. h4 {[%clk 0:00:08]}  Rb2 {[%clk 0:01:18]} 37. g5 {[%clk 0:00:08]}  hxg5 {[%clk 0:01:18]} 38. hxg5 {[%clk 0:00:09]}  Nh7 {[%clk 0:01:18]} 39. Bd1 {[%clk 0:00:05]}  Nxg5 {[%clk 0:01:17]} 40. Kg3 {[%clk 0:00:04]}  Ne4+ {[%clk 0:01:17]} 0-1


[Site "https://www.chess.com"]

[Event "Titled Tuesday Blitz January 03 Late 2023"]
[White "Kravtsiv, Martyn"]
[Black "Brozyna, Mateusz"]
[WhiteFideId "14113147"]
[BlackFideId "21816140"]
[WhiteElo "2598"]
[BlackElo "2298"]
[Result "1-0"]
[Round "01"]
[TimeControl "180+2"]
[Date "2023.01.03"]
[WhiteClock "0:00:17"]
[BlackClock "0:00:03"]

1. e4 {[%clk 0:03:00]}  e5 {[%clk 0:02:59]} 2. Nf3 {[%clk 0:03:00]}  Nc6 {[%clk 0:02:58]} 3. Nc3 {[%clk 0:02:59]}  Nf6 {[%clk 0:02:57]} 4. a4 {[%clk 0:02:59]}  Be7 {[%clk 0:02:56]} 5. d4 {[%clk 0:02:56]}  exd4 {[%clk 0:02:56]} 6. Nxd4 {[%clk 0:02:57]}  Nxd4 {[%clk 0:02:56]} 7. Qxd4 {[%clk 0:02:56]}  d6 {[%clk 0:02:56]} 8. Bc4 {[%clk 0:02:55]}  O-O {[%clk 0:02:56]} 9. O-O {[%clk 0:02:54]}  Bd7 {[%clk 0:02:41]} 10. h3 {[%clk 0:02:53]}  Bc6 {[%clk 0:02:40]} 11. Be3 {[%clk 0:02:47]}  Nd7 {[%clk 0:02:36]} 12. Nd5 {[%clk 0:02:45]}  Bf6 {[%clk 0:02:32]} 13. Nxf6+ {[%clk 0:02:44]}  Qxf6 {[%clk 0:02:30]} 14. f3 {[%clk 0:02:42]}  a6 {[%clk 0:02:24]} 15. Qxf6 {[%clk 0:02:34]}  Nxf6 {[%clk 0:02:23]} 16. Rfd1 {[%clk 0:02:33]}  Rfe8 {[%clk 0:02:23]} 17. Bg5 {[%clk 0:02:26]}  h6 {[%clk 0:02:16]} 18. Bxf6 {[%clk 0:02:25]}  gxf6 {[%clk 0:02:17]} 19. Kf2 {[%clk 0:02:22]}  Re5 {[%clk 0:02:16]} 20. g4 {[%clk 0:02:21]}  Rc5 {[%clk 0:02:06]} 21. b3 {[%clk 0:02:15]}  a5 {[%clk 0:02:06]} 22. Rd2 {[%clk 0:02:12]}  Kg7 {[%clk 0:02:05]} 23. Ke3 {[%clk 0:02:11]}  Re8 {[%clk 0:02:03]} 24. Kf4 {[%clk 0:02:10]}  b6 {[%clk 0:02:00]} 25. Rad1 {[%clk 0:02:08]}  Ree5 {[%clk 0:01:59]} 26. Kg3 {[%clk 0:02:05]}  Bxa4 {[%clk 0:01:50]} 27. Bd5 {[%clk 0:01:50]}  Bc6 {[%clk 0:01:47]} 28. c4 {[%clk 0:01:50]}  Re8 {[%clk 0:01:39]} 29. Ra1 {[%clk 0:01:40]}  Ra8 {[%clk 0:01:32]} 30. Bxc6 {[%clk 0:01:38]}  Rxc6 {[%clk 0:01:32]} 31. Rd5 {[%clk 0:01:27]}  Re8 {[%clk 0:01:28]} 32. Kf4 {[%clk 0:01:22]}  Re5 {[%clk 0:01:27]} 33. Ke3 {[%clk 0:01:22]}  Rc5 {[%clk 0:01:18]} 34. Kd4 {[%clk 0:01:19]}  Rexd5+ {[%clk 0:01:12]} 35. exd5 {[%clk 0:01:18]}  Kg6 {[%clk 0:01:08]} 36. f4 {[%clk 0:01:12]}  f5 {[%clk 0:01:08]} 37. Re1 {[%clk 0:01:11]}  fxg4 {[%clk 0:01:07]} 38. hxg4 {[%clk 0:01:10]}  b5 {[%clk 0:01:04]} 39. Rc1 {[%clk 0:00:49]}  bxc4 {[%clk 0:00:59]} 40. bxc4 {[%clk 0:00:47]}  f5 {[%clk 0:00:58]} 41. gxf5+ {[%clk 0:00:40]}  Kxf5 {[%clk 0:00:58]} 42. Rh1 {[%clk 0:00:40]}  Kxf4 {[%clk 0:00:58]} 43. Rxh6 {[%clk 0:00:41]}  Kf3 {[%clk 0:00:58]} 44. Rh8 {[%clk 0:00:39]}  Ke2 {[%clk 0:00:57]} 45. Rb8 {[%clk 0:00:38]}  Kd2 {[%clk 0:00:57]} 46. Rb2+ {[%clk 0:00:38]}  Kc1 {[%clk 0:00:56]} 47. Rh2 {[%clk 0:00:29]}  c6 {[%clk 0:00:43]} 48. Rh6 {[%clk 0:00:27]}  cxd5 {[%clk 0:00:37]} 49. cxd5 {[%clk 0:00:27]}  a4 {[%clk 0:00:36]} 50. Rxd6 {[%clk 0:00:27]}  Ra5 {[%clk 0:00:37]} 51. Rc6+ {[%clk 0:00:26]}  Kb2 {[%clk 0:00:36]} 52. d6 {[%clk 0:00:26]}  a3 {[%clk 0:00:34]} 53. d7 {[%clk 0:00:26]}  Ra4+ {[%clk 0:00:14]} 54. Kd3 {[%clk 0:00:20]}  a2 {[%clk 0:00:10]} 55. Rc2+ {[%clk 0:00:19]}  Kb3 {[%clk 0:00:03]} 56. Rxa2 {[%clk 0:00:17]}  Rxa2 {[%clk 0:00:02]} 57. d8=Q {[%clk 0:00:17]}  Rd2+ {[%clk 0:00:01]} 58. Kxd2 {[%clk 0:00:17]}  Kb2 {[%clk 0:00:02]} 59. Qd3 {[%clk 0:00:16]}  Ka1 {[%clk 0:00:02]} 60. Qb5 {[%clk 0:00:16]}  Ka2 {[%clk 0:00:02]} 61. Kc2 {[%clk 0:00:17]}  Ka1 {[%clk 0:00:03]} 62. Qb2# {[%clk 0:00:17]} 1-0


[Site "https://www.chess.com"]